bitfinex/quotes_ETHUSD_20240618
["timestamp","ask_amount","ask_price","bid_price","bid_amount"]
[1718727569203,0.60836274,3412.4,3412.2,2.93066]
[1718727569495,12.38,3412.5,3412.3,2.93057]
[1718727569496,12.98836274,3412.5,3412.3,2.93057]
[1718727569708,12.38,3412.5,3412.4,5.86096]
[1718727569858,12.38,3412.5,3412.3,2.93056]
[1718727570057,12.38,3412.5,3412.4,2.93048]
[1718727570258,4.14222234,3412.9,3412.3,2.93053]
[1718727570259,0.60836274,3412.8,3412.3,2.93053]
[1718727570487,0.9123881,3412.9,3412.1,0.252351]
[1718727570488,0.60836274,3412.9,3412.5,2.93032]
[1718727570799,2.93014,3412.8,3412.4,2.93047]
[1718727571115,3.53850274,3412.8,3412.4,2.93047]
[1718727571257,2.93014,3412.8,3412.5,2.9304]
[1718727571459,3.53850274,3412.8,3412.4,2.93048]
[1718727571660,0.60836274,3412.8,3412.4,2.93048]
[1718727571868,3.53851274,3412.8,3412.5,2.93039]
[1718727572158,0.60836274,3412.7,3411.2,2.93151]
[1718727572384,2.93083,3412.0,3411.4,2.93134]
[1718727572587,6.77,3412.3,3411.6,2.93115]
[1718727573071,6.77,3412.3,3412.2,2.93066]
[1718727573283,0.60836274,3412.7,3412.2,2.93066]
[1718727573500,0.60836274,3412.7,3412.1,2.93068]
[1718727573501,2.93033,3412.6,3412.1,2.93068]
[1718727573696,2.93086,3412.0,3411.5,0.532944]
[1718727573865,2.93086,3412.0,3411.7,2.93107]
[1718727574068,2.93086,3412.0,3411.3,2.3981]
[1718727574069,2.93117,3411.6,3411.3,2.3981]
[1718727574291,2.93083,3412.0,3411.3,2.3981]
[1718727574292,2.9311,3411.7,3411.3,2.3981]
[1718727574663,0.60836274,3411.8,3411.3,2.3981]
[1718727574664,0.60836274,3411.8,3411.4,2.93134]
[1718727574857,0.9123881,3412.0,3411.3,2.3981]
[1718727574858,3.60836274,3412.0,3411.5,2.93125]
[1718727575060,3.53928274,3411.9,3411.3,2.3981]
[1718727575301,3.9123881,3412.0,3411.3,2.3981]
[1718727575302,0.60836274,3411.7,3411.3,2.3981]
[1718727575613,0.60836274,3411.7,3411.2,2.93151]
[1718727575614,2.93132,3411.5,3411.2,2.93151]
[1718727575760,2.93135,3411.4,3411.0,2.93162]
[1718727575965,2.93145,3411.3,3411.0,2.93162]
[1718727576193,0.60836274,3411.4,3410.7,2.3911]
[1718727576393,3.53988274,3411.2,3410.8,2.93185]
[1718727576563,2.93161,3411.1,3410.8,2.93185]
[1718727576760,0.60836274,3411.1,3410.9,2.93175]
[1718727576967,0.60836274,3411.1,3410.8,2.93185]
[1718727576968,3.53996274,3411.1,3410.8,2.93185]
[1718727577165,0.60836274,3411.0,3410.8,2.93185]
[1718727577690,0.60836274,3411.0,3410.7,5.32304]
[1718727577691,0.60836274,3410.9,3410.7,2.3911]
[1718727577899,0.60836274,3410.9,3410.1,2.3911]
[1718727578187,0.60836274,3410.9,3410.2,2.93236]
[1718727578188,3.54048274,3410.5,3410.2,2.93236]
[1718727578401,3.54056274,3410.4,3410.1,2.3911]
[1718727578575,3.54056274,3410.4,3409.9,2.93262]
[1718727578576,0.60836274,3410.2,3409.9,2.93262]
[1718727578897,2.93236,3410.3,3409.7,2.93279]
[1718727578898,2.93257,3410.0,3409.7,2.93279]
[1718727579063,0.60927094,3410.0,3409.6,2.93289]
[1718727579264,0.60927094,3410.0,3409.9,5.86526]
[1718727579613,0.60927094,3410.2,3410.0,2.93255]
[1718727579902,0.60927094,3410.2,3410.1,8.79738]
[1718727580111,0.60927094,3410.4,3410.3,2.93229]
[1718727580400,2.9322,3410.4,3410.1,2.93241]
[1718727580604,0.60936465,3410.3,3410.2,5.86474]
[1718727580764,0.9123881,3410.5,3410.2,2.93236]
[1718727580765,0.60936465,3410.4,3410.2,2.93236]
[1718727580969,2.93212,3410.5,3410.2,0.586489]
[1718727580970,0.60936465,3410.3,3410.2,0.586489]
[1718727581223,7.37936465,3410.7,3410.3,5.31779]
[1718727581514,7.37936465,3410.7,3410.4,0.531779]
[1718727581694,0.60936465,3410.5,3410.3,2.3855]
[1718727582001,0.60936465,3410.6,3410.4,2.9322]
[1718727582310,6.77,3410.7,3410.6,5.86406]
[1718727582465,0.60936465,3410.9,3410.6,2.93203]
[1718727582664,0.9123881,3411.1,3410.9,2.93177]
[1718727583200,0.9123881,3411.3,3411.2,2.93151]
[1718727583386,0.9123881,3411.4,3411.3,2.93143]
[1718727583598,1.21210234,3411.5,3411.3,2.93143]
[1718727583599,0.9123881,3411.5,3411.3,2.93143]
[1718727583780,1.21210234,3411.6,3411.4,2.93134]
[1718727584115,2.93149,3411.3,3410.9,2.9317]
[1718727584296,0.91462322,3411.3,3410.8,2.93185]
[1718727584479,0.91462322,3411.3,3411.2,2.93151]
[1718727584678,0.91462322,3411.4,3411.3,2.93143]
[1718727585477,0.91462322,3411.4,3410.6,0.555608]
[1718727585799,0.91462322,3411.3,3411.0,2.93168]
[1718727585962,0.91462322,3411.3,3411.1,2.93153]
[1718727586361,2.93136,3411.4,3411.1,5.86313]
[1718727586362,0.91462322,3411.2,3411.1,5.86313]
[1718727586566,0.91462322,3411.2,3411.0,2.93168]
[1718727586567,0.91462322,3411.4,3411.2,2.93151]
[1718727586767,0.91462322,3411.4,3411.3,6.156011]
[1718727587009,1.21210234,3411.5,3411.4,5.86268]
[1718727587010,0.91462322,3411.5,3411.4,5.86268]
[1718727587177,0.91462322,3411.6,3411.5,2.93126]
[1718727587383,0.91462322,3411.6,3411.5,5.86252]
[1718727587571,0.91462322,3411.6,3411.5,9.9468701]
[1718727587770,0.91462322,3411.7,3411.6,8.79351]
[1718727587971,0.91462322,3411.7,3411.5,1.1530901]
[1718727587972,0.91462322,3412.0,3411.7,2.931]
[1718727588319,0.91462322,3412.1,3412.0,5.86166]
[1718727588685,0.91462322,3412.3,3412.2,2.93066]
[1718727589095,0.91462322,3412.3,3412.2,6.447458]
[1718727589276,1.21210234,3412.5,3412.3,2.93057]
[1718727589277,0.91462322,3412.5,3412.3,2.93057]
[1718727589610,0.91462322,3412.6,3412.4,2.93041]
[1718727589907,0.91571693,3412.6,3412.5,5.8608]
[1718727590117,0.91571693,3412.6,3412.2,3.516778]
[1718727590118,2.93044,3412.5,3412.2,3.516778]
[1718727590330,3.84611903,3412.5,3412.2,2.93064]
[1718727590618,0.91567903,3412.5,3411.8,2.3252]
[1718727590838,3.84615903,3412.4,3411.9,2.93086]
[1718727591032,3.84631903,3412.3,3411.9,2.93086]
[1718727591188,2.93074,3412.1,3411.8,5.25619]
[1718727591507,0.91497292,3412.2,3412.1,2.93074]
[1718727591908,0.91497292,3412.3,3412.1,2.93074]
[1718727592121,0.91497292,3412.3,3412.2,8.79198]
[1718727592416,0.91497292,3412.4,3412.3,5.86114]
[1718727592657,7.68497292,3412.7,3412.3,2.93057]
[1718727592932,7.68497292,3412.7,3412.6,2.93031]
[1718727593339,7.37954622,3412.7,3412.6,8.79093]
[1718727593483,0.60954622,3412.9,3412.8,8.79042]
[1718727593688,0.60954622,3413.1,3413.0,5.85994]
[1718727593888,0.60954622,3413.2,3413.1,5.85976]
[1718727594109,7.37954622,3413.3,3413.2,2.9298]
[1718727594423,6.77,3413.3,3413.2,5.8596]
[1718727594799,6.77,3413.3,3413.2,2.9298]
[1718727595026,6.77,3413.3,3413.2,5.8596]
[1718727595720,6.77,3413.3,3413.2,2.9298]
[1718727596088,6.77,3413.3,3413.2,5.8596]
[1718727596287,6.77,3413.3,3413.2,9.7789999]
[1718727596489,0.60954622,3413.8,3413.6,2.92945]
[1718727596720,1.2199639,3414.2,3414.0,2.92911]
[1718727596721,0.91497292,3414.2,3414.0,2.92911]
[1718727597038,0.609062,3414.1,3413.9,2.92919]
[1718727597216,0.609062,3414.1,3413.6,2.92945]
[1718727597393,0.609062,3414.2,3413.6,2.92945]
[1718727597592,0.609062,3414.2,3414.1,5.85804]
[1718727597907,7.379062,3414.3,3414.1,2.92902]
[1718727598224,7.379062,3414.3,3414.1,5.85804]
[1718727598386,6.77,3414.3,3414.1,2.92902]
[1718727598591,6.77,3414.3,3414.0,2.9291]
[1718727598815,7.379062,3414.3,3414.1,2.929]
[1718727599186,7.379062,3414.3,3414.0,2.92909]
[1718727599384,6.77,3414.3,3414.0,2.92909]
[1718727599625,6.77,3414.3,3414.1,2.92895]
[1718727600197,6.77,3414.3,3412.6,2.93028]
[1718727600198,6.77,3414.3,3413.9,2.92918]
[1718727600385,6.77,3414.3,3412.9,0.813559]
[1718727600588,0.91497292,3414.6,3414.4,2.92877]
[1718727600836,0.609062,3414.7,3414.4,2.92875]
[1718727601040,0.609062,3414.7,3413.5,2.92952]
[1718727601249,2.92936,3413.8,3413.4,2.92955]
[1718727601386,2.92912,3414.0,3413.2,2.92979]
[1718727601741,7.68497292,3414.2,3412.9,5.25494]
[1718727601742,7.379062,3414.2,3413.5,2.92953]
[1718727601888,7.379062,3414.2,3413.6,0.292953]
[1718727601889,6.77,3414.2,3413.6,0.292953]
[1718727602090,6.77,3414.2,3414.1,2.92902]
[1718727602395,0.609062,3414.7,3413.8,5.28371]
[1718727602597,3.0,3414.7,3414.6,2.9286]
[1718727602907,3.0,3414.7,3414.5,2.92866]
[1718727603105,3.0,3414.7,3414.4,2.92875]
[1718727603302,3.0,3414.7,3414.5,2.92867]
[1718727603711,3.0,3414.7,3414.4,2.92868]
[1718727603991,6.77,3414.8,3414.1,2.92899]
[1718727604339,6.77,3414.8,3414.7,5.85702]
[1718727604627,6.77,3415.4,3414.4,0.292868]
[1718727604831,2.92765,3415.7,3415.1,2.92809]
[1718727604994,7.379062,3415.8,3415.3,2.92797]
[1718727605328,7.379062,3415.8,3415.5,2.9278]
[1718727605529,7.379062,3415.8,3415.3,2.92797]
[1718727605530,6.77,3415.8,3415.3,2.92797]
[1718727605696,3.0,3415.7,3415.5,2.92777]
[1718727606200,3.0,3415.7,3415.6,2.92774]
[1718727606404,9.77,3416.2,3415.7,2.92765]
[1718727606614,6.77,3416.2,3415.9,2.92747]
[1718727606813,0.609062,3416.6,3416.1,2.92731]
[1718727607332,0.609062,3416.6,3415.3,2.92797]
[1718727607508,0.609062,3416.6,3415.5,2.92782]
[1718727607705,0.609062,3416.6,3415.6,2.92765]
[1718727607903,0.609062,3416.6,3415.2,2.3898]
[1718727608122,0.609062,3416.6,3415.2,5.31781]
[1718727608289,0.609062,3416.6,3415.4,2.92788]
[1718727608494,0.609062,3416.6,3415.3,2.92794]
[1718727608722,0.609062,3416.6,3414.9,2.92833]
[1718727608723,2.801,3416.4,3414.9,2.92833]
[1718727609144,3.0,3416.3,3414.5,2.3982]
[1718727609350,2.801,3415.8,3413.9,2.368]
[1718727609514,2.801,3415.8,3414.1,2.929]
[1718727609515,3.55,3415.7,3414.1,2.929]
[1718727610206,3.55,3415.7,3414.0,2.92906]
[1718727610402,3.55,3415.7,3413.9,2.368]
[1718727610609,3.55,3415.7,3413.4,2.92961]
[1718727610610,2.801,3415.3,3413.4,2.92961]
[1718727610824,2.801,3415.3,3413.1,2.4277]
[1718727610825,2.801,3414.8,3413.1,2.4277]
[1718727611127,5.31,3415.2,3412.6,2.93028]
[1718727611128,2.801,3414.2,3412.6,2.9303]
[1718727611335,2.801,3414.2,3412.5,2.4277]
[1718727611535,2.801,3414.2,3412.9,2.93004]
[1718727611741,3.0,3414.1,3413.0,2.92994]
[1718727612098,3.0,3414.1,3412.9,2.93005]
[1718727612304,3.0,3414.1,3412.5,2.4277]
[1718727612545,6.77,3414.6,3412.5,2.4277]
[1718727612546,3.0,3414.5,3412.5,2.4277]
[1718727612840,2.801,3414.2,3412.6,2.98891218]
[1718727613041,3.0,3414.1,3413.2,2.92979]
[1718727613241,3.0,3414.4,3413.2,2.92979]
[1718727613403,3.0,3414.5,3412.8,2.93009]
[1718727613600,3.55,3414.5,3412.5,2.4277]
[1718727613804,3.55,3414.5,3412.9,2.93004]
[1718727614106,5.31,3414.5,3412.5,2.4277]
[1718727614306,2.801,3414.1,3412.3,2.93056]
[1718727614539,3.55,3414.0,3412.5,2.93039]
[1718727614720,3.55,3414.0,3411.9,2.4418]
[1718727614920,3.55,3414.0,3412.1,2.93073]
[1718727614921,1.76,3413.9,3412.1,2.93073]
[1718727615142,0.55,3413.8,3412.1,2.93073]
[1718727615443,2.801,3413.6,3412.1,2.93073]
[1718727615649,3.0,3413.5,3412.5,2.93038]
[1718727615951,3.0,3413.5,3412.2,2.93064]
[1718727616848,3.0,3413.5,3411.9,5.37264]
[1718727617732,3.0,3413.5,3412.1,2.93074]
[1718727617947,3.0,3413.5,3411.5,5.30206]
[1718727617948,4.76,3413.5,3411.5,5.30206]
[1718727618154,4.76,3413.5,3411.2,2.93143]
[1718727618155,2.801,3413.0,3411.2,2.93143]
[1718727618364,2.801,3413.0,3410.9,5.30255]
[1718727618365,2.801,3413.0,3411.4,2.93126]
[1718727618657,3.0,3412.9,3411.5,0.586269]
[1718727619026,2.801,3412.5,3410.9,2.3708]
[1718727619228,3.0,3412.4,3410.5,2.93205]
[1718727619424,0.55,3412.3,3410.7,2.93194]
[1718727619620,0.55,3412.3,3410.8,0.586399]
[1718727619833,0.55,3412.3,3410.5,2.93205]
[1718727620359,3.0,3412.4,3410.7,2.93194]
[1718727620644,3.0,3412.4,3411.1,2.93159]
[1718727620850,3.0,3412.4,3411.2,0.58633]
[1718727621048,3.0,3412.4,3411.0,2.93169]
[1718727621254,0.55,3412.3,3410.3,2.93228]
[1718727621464,0.55,3412.3,3410.7,2.93193]
[1718727622014,0.55,3412.3,3410.7,5.86386]
[1718727622219,3.0,3412.4,3411.4,2.93128]
[1718727622728,3.0,3412.4,3411.2,2.4723]
[1718727622929,6.77,3412.8,3412.1,2.93072]
[1718727623131,2.801,3413.1,3411.7,2.93101]
[1718727623328,0.6058986,3412.8,3411.8,2.93096]
[1718727623534,0.3058986,3412.9,3411.9,2.93083]
[1718727624155,6.77,3413.2,3411.9,2.93088]
[1718727624326,0.90884791,3413.1,3411.9,0.3223931]
[1718727624517,0.90884791,3413.1,3411.9,3.2532731]
[1718727624722,0.90884791,3413.0,3411.9,0.3223931]
[1718727624923,7.67884791,3413.2,3412.0,0.64775741]
[1718727625126,6.77,3413.2,3412.0,0.64775741]
[1718727625434,7.67884791,3413.2,3412.2,2.93065]
[1718727625638,7.67884791,3413.2,3412.3,2.93057]
[1718727625831,3.0,3413.1,3412.0,2.93081]
[1718727626042,3.90884791,3413.1,3412.0,2.93075]
[1718727626345,3.90884791,3413.1,3412.1,2.93071]
[1718727626545,3.90884791,3413.1,3412.1,3.516856]
[1718727627321,0.90884791,3413.0,3412.1,0.586146]
[1718727627525,0.90884791,3412.9,3411.8,2.93099]
[1718727627719,0.90884791,3412.9,3412.2,2.93063]
[1718727627953,3.90884791,3413.1,3412.3,2.93057]
[1718727628161,3.90884791,3413.1,3412.4,2.93046]
[1718727628465,3.90884791,3413.1,3412.3,2.93056]
[1718727628756,3.90884791,3413.1,3412.3,0.586121]
[1718727628959,3.90884791,3413.1,3412.2,2.93063]
[1718727629371,0.90884791,3413.0,3412.2,2.93063]
[1718727629523,0.90884791,3413.0,3412.4,2.93048]
[1718727629723,3.0,3413.1,3412.6,2.9303]
[1718727629958,3.90884791,3413.1,3412.2,5.40057]
[1718727630456,0.90884791,3413.0,3412.2,6.5561156]
[1718727630771,3.0,3413.1,3412.4,2.93048]
[1718727631123,3.90884791,3413.1,3412.4,2.93048]
[1718727631421,0.90884791,3412.9,3411.6,2.4103]
[1718727631629,0.90884791,3412.5,3411.2,2.93151]
[1718727631964,0.90884791,3412.2,3411.1,2.93159]
[1718727632163,0.90884791,3412.0,3411.2,2.9315]
[1718727632464,0.90884791,3412.2,3411.2,2.9315]
[1718727632681,0.90884791,3412.2,3411.1,0.534198]
[1718727632682,3.90884791,3412.2,3411.5,2.93124]
[1718727632826,3.90884791,3412.2,3411.3,3.8121878]
[1718727632827,0.90884791,3412.1,3411.3,0.8807678]
[1718727633272,0.90884791,3412.1,3411.2,2.9315]
[1718727633453,0.90884791,3412.1,3411.3,2.93141]
[1718727633663,0.60736225,3411.9,3411.4,2.93133]
[1718727633834,0.60736225,3411.9,3411.4,0.879443]
[1718727634153,0.60736225,3411.9,3411.3,2.93141]
[1718727634488,0.60729918,3411.9,3410.6,2.93203]
[1718727634652,0.60729918,3411.7,3410.5,2.93205]
[1718727634966,1.21459836,3412.0,3410.8,2.93186]
[1718727634967,0.60729918,3411.5,3410.8,2.93186]
[1718727635165,0.60729918,3411.5,3410.9,0.586389]
[1718727635367,0.60729918,3411.6,3410.9,3.518149]
[1718727635569,0.60729918,3411.7,3410.9,0.586389]
[1718727635755,0.91094877,3411.8,3410.8,2.93185]
[1718727635756,0.60729918,3411.6,3410.8,2.93185]
[1718727636084,0.60729918,3411.6,3410.4,0.24796]
[1718727636085,0.60729918,3411.5,3410.4,0.24796]
[1718727636734,0.1518248,3411.6,3410.4,0.24796]
[1718727636735,0.75912398,3411.6,3410.4,0.24796]
[1718727636942,0.60729918,3411.4,3410.4,0.24796]
[1718727637252,0.60729918,3411.3,3410.1,2.93246]
[1718727637662,0.60729918,3411.2,3410.1,2.93246]
[1718727637963,0.60729918,3411.2,3410.2,2.93235]
[1718727638149,0.60729918,3411.2,3410.3,3.225525]
[1718727638351,0.60729918,3411.3,3410.3,0.293235]
[1718727638687,0.60729918,3411.3,3410.3,3.225505]
[1718727638984,0.60729918,3411.3,3410.4,2.93217]
[1718727639190,0.60729918,3411.3,3410.5,2.93207]
[1718727639353,0.60729918,3411.5,3410.8,2.93185]
[1718727639540,3.60729918,3411.5,3410.4,0.3225505]
[1718727639741,0.60729918,3411.5,3410.5,2.9321]
[1718727640064,0.60729918,3411.5,3410.6,2.93203]
[1718727640269,0.75912398,3411.6,3410.7,2.93194]
[1718727640480,0.75912398,3411.6,3410.5,2.93204]
[1718727640776,0.75912398,3411.6,3410.7,2.93193]
[1718727640777,0.60729918,3411.5,3410.7,2.93193]
[1718727640941,3.60729918,3411.8,3410.6,2.2557]
[1718727641140,6.77,3412.0,3411.5,2.93125]
[1718727641366,1.11485346,3412.3,3411.5,2.93125]
[1718727641603,6.77,3412.4,3411.5,2.93124]
[1718727641604,7.37729918,3412.4,3411.5,2.93124]
[1718727641809,6.77,3412.4,3411.6,2.93116]
[1718727642094,6.77,3412.4,3411.4,2.93133]
[1718727642266,0.60729918,3412.3,3411.2,2.9315]
[1718727642596,0.60729918,3412.2,3411.5,2.93123]
[1718727642835,7.68094877,3412.4,3411.4,2.93133]
[1718727642836,7.37729918,3412.4,3411.4,2.93133]
[1718727642977,3.0,3412.3,3411.4,2.93133]
[1718727643513,4.11482095,3412.3,3411.4,2.93133]
[1718727644094,3.50752177,3412.3,3411.4,2.93133]
[1718727644292,3.50752177,3412.3,3411.4,3.546938]
[1718727644460,3.0,3412.3,3412.1,2.93074]
[1718727644891,6.77,3412.4,3412.2,2.93063]
[1718727645095,7.37729918,3412.8,3412.3,2.93057]
[1718727645292,6.77,3412.8,3412.3,3.516701]
[1718727645694,6.77,3412.8,3412.4,2.93047]
[1718727645866,6.77,3412.8,3412.7,2.93023]
[1718727646071,6.77,3413.4,3412.8,2.93007]
[1718727646296,0.60729918,3413.5,3412.9,0.293007]
[1718727646468,0.60729918,3413.5,3413.0,2.92992]
[1718727646704,0.60729918,3413.6,3412.9,2.93001]
[1718727647135,7.37729918,3413.7,3413.3,2.92971]
[1718727647339,7.37729918,3413.7,3413.1,2.92981]
[1718727647488,3.0,3413.6,3413.4,2.92962]
[1718727647693,6.77,3413.7,3413.4,2.92962]
[1718727648329,6.77,3413.7,3413.2,2.92979]
[1718727648500,6.77,3413.7,3412.7,0.527438]
[1718727648826,6.77,3413.7,3413.4,2.92954]
[1718727649226,3.0,3414.0,3413.3,2.92964]
[1718727649405,6.77,3414.2,3413.9,2.92912]
[1718727649611,0.60729918,3414.4,3413.7,2.92929]
[1718727649917,0.60729918,3414.4,3413.8,2.92928]
[1718727650124,0.91094877,3414.6,3413.1,2.92981]
[1718727650125,3.60729918,3414.6,3414.0,2.92908]
[1718727650362,3.60729918,3414.6,3414.5,2.92868]
[1718727650545,3.60729918,3414.6,3414.0,0.585839]
[1718727650546,3.0,3414.6,3414.0,0.585839]
[1718727650859,3.0,3414.6,3414.1,2.92902]
[1718727651354,3.0,3414.6,3413.9,2.92918]
[1718727651666,3.0,3414.6,3413.8,2.2571]
[1718727651869,3.0,3414.6,3412.6,3.0]
[1718727651870,3.60796148,3414.6,3413.6,2.92945]
[1718727652018,0.60796148,3414.5,3413.3,5.27386]
[1718727652223,0.60796148,3414.2,3413.3,5.2739]
[1718727652439,0.60796148,3413.9,3412.9,2.93003]
[1718727652639,0.60796148,3413.9,3413.0,2.92989]
[1718727652919,0.60796148,3413.6,3413.1,2.92987]
[1718727653138,0.60796148,3413.6,3413.2,2.92976]
[1718727653323,0.60796148,3413.7,3413.2,2.92976]
[1718727653652,0.60796148,3413.7,3413.3,2.92968]
[1718727653863,0.60796148,3413.7,3413.4,2.92962]
[1718727654456,0.60796148,3413.7,3413.2,2.92979]
[1718727654962,0.91094877,3413.8,3413.0,3.808312]
[1718727654963,0.60796148,3413.6,3413.1,2.92987]
[1718727655477,0.60796148,3413.6,3412.8,0.5801]
[1718727655478,0.60796148,3413.6,3412.8,2.93006]
[1718727655677,0.60796148,3413.3,3412.8,2.93006]
[1718727656035,0.60796148,3413.4,3412.7,5.27442]
[1718727656344,0.60796148,3413.3,3412.5,2.93032]
[1718727656574,0.60796148,3413.3,3412.6,0.586086]
[1718727656780,0.60796148,3413.3,3412.7,2.93015]
[1718727657079,0.60796148,3413.3,3412.8,2.93014]
[1718727657276,0.60796148,3413.3,3412.9,2.92998]
[1718727657688,0.60796148,3413.4,3412.9,2.92998]
[1718727658186,0.91094877,3413.5,3412.7,2.93015]
[1718727658187,0.60796148,3413.3,3412.7,2.93015]
[1718727658336,0.60796148,3413.3,3412.8,2.93012]
[1718727658759,0.60796148,3413.3,3412.4,2.9304]
[1718727658960,0.60796148,3413.1,3412.3,3.17567]
[1718727659151,0.60796148,3413.0,3412.3,3.17567]
[1718727659350,0.60796148,3413.0,3412.4,3.7862]
[1718727659572,0.60796148,3412.8,3412.2,5.38174]
[1718727659783,0.60796148,3412.8,3411.7,2.93106]
[1718727659784,0.60796148,3412.7,3411.8,2.93092]
[1718727659949,0.60796148,3412.7,3412.0,2.93082]
[1718727659950,0.60796148,3412.6,3412.0,2.93082]
[1718727660164,0.60796148,3412.5,3411.8,3.752356]
[1718727660485,0.60796148,3412.5,3412.2,2.93058]
[1718727660713,0.60796148,3412.5,3411.9,2.93083]
[1718727660831,0.60796148,3412.5,3412.0,2.93082]
[1718727661037,0.60796148,3412.5,3411.7,2.93104]
[1718727661272,0.60796148,3412.5,3411.8,2.93098]
[1718727661478,0.60796148,3412.7,3412.6,5.86062]
[1718727661752,7.68094877,3412.8,3411.5,2.93119]
[1718727661753,6.77,3412.8,3412.7,8.79069]
[1718727661922,6.77,3412.8,3412.7,6.739529]
[1718727662055,6.77,3412.8,3412.3,2.4437]
[1718727662259,7.37796148,3412.8,3412.3,2.93056]
[1718727662460,6.77,3412.8,3411.8,2.4437]
[1718727662694,6.77,3412.8,3412.7,2.93023]
[1718727663096,6.77,3412.8,3412.6,2.9303]
[1718727663297,6.77,3412.8,3412.3,2.93056]
[1718727663510,6.77,3412.8,3412.4,0.293054]
[1718727663683,6.77,3412.8,3412.7,2.93023]
[1718727663880,6.77,3412.8,3412.7,5.86046]
[1718727664281,6.77,3412.8,3412.7,11.23439]
[1718727664569,6.77,3412.8,3412.7,14.16462]
[1718727664963,7.37796148,3413.8,3413.4,2.9296]
[1718727665166,7.37796148,3413.8,3413.2,2.9298]
[1718727665167,0.60796148,3413.8,3413.3,2.9297]
[1718727665359,0.60796148,3413.7,3413.1,2.92987]
[1718727665574,8.29012979,3414.2,3412.6,2.93029]
[1718727665575,0.60796148,3413.5,3412.6,2.93029]
[1718727665774,0.60796148,3413.0,3412.6,0.879118]
[1718727666005,0.60796148,3413.0,3412.3,2.93057]
[1718727666006,0.60796148,3412.9,3411.9,2.93091]
[1718727666212,0.60796148,3412.6,3412.4,2.93048]
[1718727666509,0.91094877,3412.7,3412.6,2.93031]
[1718727666510,0.60800173,3412.7,3412.6,2.93031]
[1718727666736,0.60800173,3412.8,3412.7,2.93023]
[1718727666874,0.60800173,3412.9,3412.4,0.586105]
[1718727667080,0.60800173,3412.7,3410.7,2.9319]
[1718727667397,0.60800173,3412.6,3412.2,2.93065]
[1718727667703,0.60800173,3412.5,3411.7,0.23568]
[1718727668047,0.60800173,3412.5,3411.0,2.4384]
[1718727668048,0.60800173,3411.9,3411.0,2.4384]
[1718727668173,0.60800173,3411.6,3411.0,5.37007]
[1718727668373,0.60800173,3411.5,3411.1,0.830177]
[1718727668574,0.60800173,3411.5,3410.6,2.3176]
[1718727668575,0.60800173,3411.4,3410.6,2.3176]
[1718727668810,0.60800173,3411.2,3410.8,2.93178]
[1718727669127,0.60800173,3411.1,3410.8,0.524938]
[1718727669273,1.21459836,3411.5,3410.4,2.93217]
[1718727669274,0.60800173,3411.0,3410.5,2.93211]
[1718727669470,0.60800173,3411.0,3410.5,3.750323]
[1718727670085,0.60800173,3411.1,3410.6,2.93196]
[1718727670390,0.60800173,3410.9,3410.7,2.93186]
[1718727670688,0.91094877,3411.1,3410.8,2.93184]
[1718727670689,0.60800173,3411.1,3410.8,2.93184]
[1718727670886,0.60800173,3411.1,3410.5,3.750323]
[1718727671211,0.60800173,3411.0,3410.5,3.750323]
[1718727671370,0.60800173,3411.0,3410.6,0.6682603]
[1718727671571,4.21459836,3411.3,3410.7,2.93187]
[1718727671572,0.60800173,3411.1,3410.7,2.93187]
[1718727671774,0.60800173,3411.2,3410.7,2.93187]
[1718727672011,0.60800173,3411.3,3411.1,2.9316]
[1718727672188,3.0,3411.2,3410.7,0.586407]
[1718727672526,3.0,3411.2,3410.2,2.93236]
[1718727672527,0.60800173,3410.9,3410.2,2.93236]
[1718727673381,0.60800173,3410.8,3410.2,2.93236]
[1718727673579,0.60800173,3410.8,3410.3,0.586482]
[1718727674081,0.60800173,3410.9,3410.3,0.586482]
[1718727674748,0.60800173,3410.7,3409.9,2.93262]
[1718727675014,0.60800173,3410.7,3408.5,0.45985874]
[1718727675015,0.60800173,3410.4,3409.0,2.93333]
[1718727675230,0.60800173,3410.4,3408.9,2.3206]
[1718727675231,0.60800173,3410.0,3409.1,2.9333]
[1718727675517,0.60800173,3410.0,3408.9,5.25409]
[1718727675518,0.60800173,3410.0,3409.3,2.93313]
[1718727675721,0.60800173,3410.0,3409.2,0.818739]
[1718727675927,0.91094877,3410.2,3409.4,2.93304]
[1718727675928,0.60800173,3410.1,3409.4,2.93304]
[1718727676139,0.60800173,3410.0,3409.5,2.93291]
[1718727676340,4.21459836,3410.3,3409.9,2.93262]
[1718727676341,3.0,3410.3,3409.9,2.93262]
[1718727676492,0.60800173,3410.5,3409.6,6.452375]
[1718727676843,0.60800173,3410.4,3409.4,2.93306]
[1718727677013,0.60800173,3410.3,3409.4,3.519689]
[1718727677213,0.60800173,3410.3,3409.1,2.93326]
[1718727677214,0.60800173,3410.5,3409.8,2.93265]
[1718727677422,0.60800173,3410.6,3409.6,2.93288]
[1718727677601,0.60800173,3410.6,3408.9,2.3206]
[1718727677602,0.60800173,3410.5,3409.2,2.93323]
[1718727677805,0.91094877,3410.7,3409.8,2.93264]
[1718727677806,0.60800173,3410.4,3409.8,2.93264]
[1718727678013,0.60800173,3410.6,3409.9,2.93259]
[1718727678312,3.0,3410.7,3410.2,2.93236]
[1718727678640,3.60800173,3410.7,3409.5,2.9329]
[1718727678832,0.60800173,3410.4,3409.2,2.93316]
[1718727679135,0.60800173,3410.3,3409.2,2.93323]
[1718727679423,2.93249,3410.1,3409.3,0.67084208]
[1718727679589,2.93247,3410.1,3409.6,2.93284]
[1718727679795,2.9323,3410.3,3409.9,2.93255]
[1718727680004,9.70187,3410.8,3410.4,2.93218]
[1718727680208,6.47,3410.8,3410.2,2.93236]
[1718727680438,6.47,3410.8,3409.9,2.3209]